[Event "January 9 Early 2024"]
[Site "https://www.chess.com"]
[Date "2024.01.11"]
[Round "5"]
[White "Hungaski, Robert"]
[Black "Domalchuk-Jonasson, Aleksandr"]
[Result "1/2-1/2"]
[Board "278"]
[TimeControl "180+1"]
[WhiteFideId "2021030"]
[BlackFideId "14142805"]
[WhiteElo "2452"]
[BlackElo "2623"]
[WhiteTeam "USA"]
[BlackTeam "ISL"]
[WhiteClock "0:00:18"]
[BlackClock "0:00:19"]

1. e4 {[%clk 0:03:00]}  e6 {[%clk 0:02:56]} 2. d4 {[%clk 0:03:00]}  d5 {[%clk 0:02:57]} 3. Nc3 {[%clk 0:03:01]}  Bb4 {[%clk 0:02:57]} 4. Ne2 {[%clk 0:03:01]}  dxe4 {[%clk 0:02:52]} 5. a3 {[%clk 0:03:01]}  Be7 {[%clk 0:02:51]} 6. Nxe4 {[%clk 0:02:59]}  Nd7 {[%clk 0:02:50]} 7. Bf4 {[%clk 0:02:56]}  Ngf6 {[%clk 0:02:49]} 8. Qd3 {[%clk 0:02:52]}  Nxe4 {[%clk 0:02:48]} 9. Qxe4 {[%clk 0:02:53]}  Nf6 {[%clk 0:02:48]} 10. Qf3 {[%clk 0:02:34]}  c5 {[%clk 0:02:14]} 11. O-O-O {[%clk 0:01:37]}  Qd5 {[%clk 0:02:13]} 12. Qxd5 {[%clk 0:01:31]}  Nxd5 {[%clk 0:02:13]} 13. Be5 {[%clk 0:01:31]}  f6 {[%clk 0:02:12]} 14. Bg3 {[%clk 0:01:31]}  cxd4 {[%clk 0:02:04]} 15. Nxd4 {[%clk 0:01:28]}  Kf7 {[%clk 0:02:00]} 16. Bc4 {[%clk 0:01:26]}  Rd8 {[%clk 0:01:49]} 17. Rhe1 {[%clk 0:01:23]}  a6 {[%clk 0:01:40]} 18. Bb3 {[%clk 0:00:52]}  Bd7 {[%clk 0:01:20]} 19. Kb1 {[%clk 0:00:51]}  Rac8 {[%clk 0:01:09]} 20. Nf5 {[%clk 0:00:44]}  Bc6 {[%clk 0:00:39]} 21. Nd4 {[%clk 0:00:32]}  e5 {[%clk 0:00:36]} 22. Nf5 {[%clk 0:00:27]}  Bf8 {[%clk 0:00:33]} 23. Ne3 {[%clk 0:00:26]}  Ke6 {[%clk 0:00:31]} 24. Rd3 {[%clk 0:00:20]}  Rd7 {[%clk 0:00:28]} 25. Red1 {[%clk 0:00:20]}  Rcd8 {[%clk 0:00:29]} 26. f4 {[%clk 0:00:17]}  e4 {[%clk 0:00:29]} 27. f5+ {[%clk 0:00:16]}  Ke7 {[%clk 0:00:17]} 28. Nxd5+ {[%clk 0:00:16]}  Ke8 {[%clk 0:00:17]} 29. Nc7+ {[%clk 0:00:16]}  Ke7 {[%clk 0:00:17]} 30. Rxd7+ {[%clk 0:00:15]}  Rxd7 {[%clk 0:00:16]} 31. Rxd7+ {[%clk 0:00:15]}  Kxd7 {[%clk 0:00:16]} 32. Ne6 {[%clk 0:00:14]}  Bd6 {[%clk 0:00:14]} 33. Nd4 {[%clk 0:00:11]}  e3 {[%clk 0:00:11]} 34. Kc1 {[%clk 0:00:08]}  Bxg2 {[%clk 0:00:09]} 35. Be6+ {[%clk 0:00:09]}  Ke7 {[%clk 0:00:09]} 36. Bxd6+ {[%clk 0:00:07]}  Kxd6 {[%clk 0:00:10]} 37. Kd1 {[%clk 0:00:08]}  Ke5 {[%clk 0:00:10]} 38. c3 {[%clk 0:00:08]}  Ke4 {[%clk 0:00:08]} 39. Ke2 {[%clk 0:00:07]}  Bh3 {[%clk 0:00:08]} 40. Bc8 {[%clk 0:00:06]}  Bg4+ {[%clk 0:00:09]} 41. Ke1 {[%clk 0:00:06]}  b6 {[%clk 0:00:06]} 42. b4 {[%clk 0:00:05]}  a5 {[%clk 0:00:06]} 43. Be6 {[%clk 0:00:04]}  axb4 {[%clk 0:00:06]} 44. axb4 {[%clk 0:00:05]}  Kd3 {[%clk 0:00:04]} 45. Nb5 {[%clk 0:00:05]}  g6 {[%clk 0:00:03]} 46. Nd6 {[%clk 0:00:03]}  Bh5 {[%clk 0:00:02]} 47. fxg6 {[%clk 0:00:03]}  hxg6 {[%clk 0:00:02]} 48. c4 {[%clk 0:00:03]}  Kd4 {[%clk 0:00:02]} 49. Nb5+ {[%clk 0:00:03]}  Ke5 {[%clk 0:00:02]} 50. Bf7 {[%clk 0:00:02]}  f5 {[%clk 0:00:03]} 51. c5 {[%clk 0:00:01]}  bxc5 {[%clk 0:00:04]} 52. bxc5 {[%clk 0:00:02]}  f4 {[%clk 0:00:05]} 53. c6 {[%clk 0:00:02]}  Kf6 {[%clk 0:00:05]} 54. c7 {[%clk 0:00:02]}  Bg4 {[%clk 0:00:05]} 55. Bd5 {[%clk 0:00:03]}  Ke5 {[%clk 0:00:04]} 56. Bf3 {[%clk 0:00:04]}  Bc8 {[%clk 0:00:04]} 57. Na7 {[%clk 0:00:04]}  Bh3 {[%clk 0:00:04]} 58. c8=Q {[%clk 0:00:05]}  Bxc8 {[%clk 0:00:05]} 59. Nxc8 {[%clk 0:00:06]}  g5 {[%clk 0:00:05]} 60. h3 {[%clk 0:00:06]}  Kd4 {[%clk 0:00:05]} 61. Ke2 {[%clk 0:00:07]}  Ke5 {[%clk 0:00:06]} 62. Ne7 {[%clk 0:00:07]}  Ke6 {[%clk 0:00:06]} 63. Nc6 {[%clk 0:00:08]}  Kd6 {[%clk 0:00:06]} 64. Nd4 {[%clk 0:00:08]}  Ke5 {[%clk 0:00:07]} 65. Nc2 {[%clk 0:00:08]}  Kf5 {[%clk 0:00:07]} 66. Ne1 {[%clk 0:00:09]}  Ke5 {[%clk 0:00:08]} 67. Bg4 {[%clk 0:00:10]}  Ke4 {[%clk 0:00:08]} 68. Nf3 {[%clk 0:00:11]}  Kd5 {[%clk 0:00:08]} 69. Nxg5 {[%clk 0:00:12]}  Ke5 {[%clk 0:00:09]} 70. Nf3+ {[%clk 0:00:13]}  Kf6 {[%clk 0:00:09]} 71. Ng1 {[%clk 0:00:13]}  Kg5 {[%clk 0:00:09]} 72. Kf3 {[%clk 0:00:14]}  e2 {[%clk 0:00:09]} 73. Nxe2 {[%clk 0:00:15]}  Kh4 {[%clk 0:00:09]} 74. Bf5 {[%clk 0:00:15]}  Kg5 {[%clk 0:00:10]} 75. Bg4 {[%clk 0:00:15]}  Kh4 {[%clk 0:00:10]} 76. Nd4 {[%clk 0:00:16]}  Kg5 {[%clk 0:00:11]} 77. Nc6 {[%clk 0:00:16]}  Kh4 {[%clk 0:00:12]} 78. Ne5 {[%clk 0:00:14]}  Kg5 {[%clk 0:00:13]} 79. Nc4 {[%clk 0:00:15]}  Kh4 {[%clk 0:00:14]} 80. Nd2 {[%clk 0:00:15]}  Kg5 {[%clk 0:00:15]} 81. Ne4+ {[%clk 0:00:16]}  Kh4 {[%clk 0:00:16]} 82. Nf2 {[%clk 0:00:16]}  Kg5 {[%clk 0:00:17]} 83. Nh1 {[%clk 0:00:16]}  Kh4 {[%clk 0:00:18]} 84. Kg2 {[%clk 0:00:17]}  Kg5 {[%clk 0:00:18]} 85. Nf2 {[%clk 0:00:17]}  Kh4 {[%clk 0:00:19]} 86. Ne4 {[%clk 0:00:18]}  f3+ {[%clk 0:00:19]} 87. Kxf3 {[%clk 0:00:18]} 1/2-1/2

[Event "January 9 Early 2024"]
[Site "https://www.chess.com"]
[Date "2024.01.11"]
[Round "5"]
[White "Rakitin, Daniil"]
[Black "Sethuraman, S.P."]
[Result "1-0"]
[Board "279"]
[TimeControl "180+1"]
[WhiteFideId "24219762"]
[BlackFideId "5021596"]
[WhiteElo "2688"]
[BlackElo "2872"]
[WhiteTeam "RUS"]
[BlackTeam "IND"]
[WhiteClock "0:00:14"]
[BlackClock "0:00:02"]

1. e4 {[%clk 0:03:00]}  c5 {[%clk 0:03:00]} 2. Nf3 {[%clk 0:03:01]}  d6 {[%clk 0:03:00]} 3. d4 {[%clk 0:03:00]}  cxd4 {[%clk 0:03:01]} 4. Nxd4 {[%clk 0:03:01]}  Nf6 {[%clk 0:03:01]} 5. Nc3 {[%clk 0:03:02]}  a6 {[%clk 0:03:02]} 6. Be2 {[%clk 0:03:02]}  e5 {[%clk 0:03:01]} 7. Nb3 {[%clk 0:03:03]}  Be7 {[%clk 0:03:01]} 8. g4 {[%clk 0:03:03]}  Be6 {[%clk 0:02:59]} 9. g5 {[%clk 0:03:03]}  Nfd7 {[%clk 0:02:58]} 10. h4 {[%clk 0:03:04]}  Nb6 {[%clk 0:02:58]} 11. Be3 {[%clk 0:03:02]}  N8d7 {[%clk 0:02:58]} 12. Qd2 {[%clk 0:02:48]}  Rc8 {[%clk 0:02:57]} 13. O-O-O {[%clk 0:02:34]}  Nc4 {[%clk 0:02:53]} 14. Bxc4 {[%clk 0:02:34]}  Rxc4 {[%clk 0:02:53]} 15. Nd5 {[%clk 0:02:12]}  Rxe4 {[%clk 0:02:40]} 16. Na5 {[%clk 0:02:07]}  Ra4 {[%clk 0:02:04]} 17. Nxb7 {[%clk 0:02:06]}  Qb8 {[%clk 0:02:02]} 18. Nc3 {[%clk 0:02:02]}  Qxb7 {[%clk 0:01:30]} 19. Nxa4 {[%clk 0:02:00]}  d5 {[%clk 0:01:30]} 20. f4 {[%clk 0:01:47]}  Qc6 {[%clk 0:01:24]} 21. Nc3 {[%clk 0:01:23]}  d4 {[%clk 0:01:23]} 22. Bxd4 {[%clk 0:01:23]}  exd4 {[%clk 0:01:23]} 23. Qxd4 {[%clk 0:01:24]}  O-O {[%clk 0:01:24]} 24. Rhe1 {[%clk 0:01:24]}  g6 {[%clk 0:00:46]} 25. Rxe6 {[%clk 0:01:19]}  fxe6 {[%clk 0:00:41]} 26. Qxd7 {[%clk 0:01:19]}  Qxd7 {[%clk 0:00:42]} 27. Rxd7 {[%clk 0:01:20]}  Bc5 {[%clk 0:00:40]} 28. Ne4 {[%clk 0:01:08]}  Be3+ {[%clk 0:00:40]} 29. Kd1 {[%clk 0:01:09]}  Rxf4 {[%clk 0:00:40]} 30. Nf6+ {[%clk 0:01:08]}  Kf8 {[%clk 0:00:40]} 31. Rxh7 {[%clk 0:01:06]}  Bd4 {[%clk 0:00:40]} 32. c3 {[%clk 0:00:52]}  Bxf6 {[%clk 0:00:37]} 33. gxf6 {[%clk 0:00:53]}  a5 {[%clk 0:00:37]} 34. f7 {[%clk 0:00:38]}  a4 {[%clk 0:00:36]} 35. h5 {[%clk 0:00:28]}  gxh5 {[%clk 0:00:25]} 36. Rxh5 {[%clk 0:00:29]}  Kxf7 {[%clk 0:00:20]} 37. Rh2 {[%clk 0:00:28]}  e5 {[%clk 0:00:18]} 38. Kc2 {[%clk 0:00:28]}  Ke6 {[%clk 0:00:18]} 39. b3 {[%clk 0:00:28]}  axb3+ {[%clk 0:00:19]} 40. axb3 {[%clk 0:00:29]}  e4 {[%clk 0:00:19]} 41. b4 {[%clk 0:00:17]}  Kd5 {[%clk 0:00:16]} 42. Rh5+ {[%clk 0:00:16]}  Kd6 {[%clk 0:00:15]} 43. Rh8 {[%clk 0:00:15]}  Rf2+ {[%clk 0:00:14]} 44. Kb3 {[%clk 0:00:15]}  e3 {[%clk 0:00:13]} 45. Re8 {[%clk 0:00:15]}  Re2 {[%clk 0:00:14]} 46. Kc4 {[%clk 0:00:14]}  Kd7 {[%clk 0:00:13]} 47. Re4 {[%clk 0:00:14]}  Kc6 {[%clk 0:00:08]} 48. Kd3 {[%clk 0:00:12]}  Rd2+ {[%clk 0:00:09]} 49. Kxe3 {[%clk 0:00:13]}  Rd1 {[%clk 0:00:09]} 50. Rd4 {[%clk 0:00:13]}  Rc1 {[%clk 0:00:08]} 51. Kd3 {[%clk 0:00:14]}  Kb6 {[%clk 0:00:09]} 52. Kc4 {[%clk 0:00:14]}  Rh1 {[%clk 0:00:08]} 53. Rd6+ {[%clk 0:00:15]}  Kc7 {[%clk 0:00:08]} 54. Rg6 {[%clk 0:00:15]}  Rh5 {[%clk 0:00:07]} 55. b5 {[%clk 0:00:15]}  Rh4+ {[%clk 0:00:08]} 56. Kc5 {[%clk 0:00:15]}  Rh5+ {[%clk 0:00:08]} 57. Kb4 {[%clk 0:00:16]}  Rh1 {[%clk 0:00:08]} 58. c4 {[%clk 0:00:16]}  Rd1 {[%clk 0:00:08]} 59. Kc5 {[%clk 0:00:16]}  Rh1 {[%clk 0:00:08]} 60. Rg7+ {[%clk 0:00:16]}  Kb8 {[%clk 0:00:08]} 61. b6 {[%clk 0:00:14]}  Rh5+ {[%clk 0:00:07]} 62. Kc6 {[%clk 0:00:15]}  Rh6+ {[%clk 0:00:07]} 63. Kb5 {[%clk 0:00:15]}  Re6 {[%clk 0:00:08]} 64. c5 {[%clk 0:00:15]}  Re1 {[%clk 0:00:07]} 65. Rh7 {[%clk 0:00:14]}  Re8 {[%clk 0:00:07]} 66. c6 {[%clk 0:00:12]}  Re5+ {[%clk 0:00:07]} 67. Ka6 {[%clk 0:00:12]}  Re8 {[%clk 0:00:04]} 68. Ra7 {[%clk 0:00:13]}  Re6 {[%clk 0:00:01]} 69. c7+ {[%clk 0:00:13]}  Kc8 {[%clk 0:00:02]} 70. Ra8+ {[%clk 0:00:14]} 1-0

[Event "January 9 Early 2024"]
[Site "https://www.chess.com"]
[Date "2024.01.11"]
[Round "5"]
[White "Aashman Gupta"]
[Black "Panda Sambit"]
[Result "0-1"]
[Board "285"]
[TimeControl "180+1"]
[WhiteFideId "45022500"]
[BlackFideId "25091794"]
[WhiteElo "2472"]
[BlackElo "2572"]
[WhiteTeam "IND"]
[BlackTeam "IND"]
[WhiteClock "0:00:08"]
[BlackClock "0:00:14"]

1. b3 {[%clk 0:02:46]}  b6 {[%clk 0:02:58]} 2. Bb2 {[%clk 0:02:43]}  Bb7 {[%clk 0:02:59]} 3. e3 {[%clk 0:02:43]}  e6 {[%clk 0:02:59]} 4. Nf3 {[%clk 0:02:43]}  Nf6 {[%clk 0:03:00]} 5. c4 {[%clk 0:02:44]}  Be7 {[%clk 0:03:00]} 6. Nc3 {[%clk 0:02:44]}  O-O {[%clk 0:03:01]} 7. d4 {[%clk 0:02:45]}  d5 {[%clk 0:03:01]} 8. cxd5 {[%clk 0:02:45]}  exd5 {[%clk 0:03:01]} 9. Bd3 {[%clk 0:02:45]}  c5 {[%clk 0:03:02]} 10. O-O {[%clk 0:02:44]}  Nbd7 {[%clk 0:03:02]} 11. dxc5 {[%clk 0:02:45]}  bxc5 {[%clk 0:03:02]} 12. Rc1 {[%clk 0:02:45]}  Re8 {[%clk 0:03:01]} 13. Qe2 {[%clk 0:02:46]}  Qb6 {[%clk 0:02:59]} 14. Na4 {[%clk 0:02:46]}  Qa5 {[%clk 0:02:54]} 15. Bc3 {[%clk 0:02:35]}  Qd8 {[%clk 0:02:46]} 16. Bxf6 {[%clk 0:02:26]}  Bxf6 {[%clk 0:02:41]} 17. Nxc5 {[%clk 0:02:26]}  Nxc5 {[%clk 0:02:41]} 18. Rxc5 {[%clk 0:02:25]}  d4 {[%clk 0:02:42]} 19. e4 {[%clk 0:02:11]}  Qe7 {[%clk 0:02:37]} 20. Rfc1 {[%clk 0:01:24]}  Bxe4 {[%clk 0:02:32]} 21. Rc7 {[%clk 0:01:24]}  Qe6 {[%clk 0:01:36]} 22. Bc4 {[%clk 0:01:19]}  Bd5 {[%clk 0:01:36]} 23. Qxe6 {[%clk 0:01:16]}  Bxe6 {[%clk 0:01:30]} 24. Bxe6 {[%clk 0:01:03]}  fxe6 {[%clk 0:01:30]} 25. Nd2 {[%clk 0:00:57]}  Bg5 {[%clk 0:01:28]} 26. Rd1 {[%clk 0:00:47]}  Bxd2 {[%clk 0:01:15]} 27. Rxd2 {[%clk 0:00:46]}  Rac8 {[%clk 0:01:12]} 28. Rxc8 {[%clk 0:00:39]}  Rxc8 {[%clk 0:01:12]} 29. Kf1 {[%clk 0:00:37]}  e5 {[%clk 0:01:10]} 30. Ke2 {[%clk 0:00:37]}  Kf7 {[%clk 0:01:10]} 31. Kd3 {[%clk 0:00:29]}  Ke6 {[%clk 0:01:10]} 32. Ke4 {[%clk 0:00:27]}  Rc1 {[%clk 0:01:11]} 33. f4 {[%clk 0:00:22]}  Re1+ {[%clk 0:01:07]} 34. Kd3 {[%clk 0:00:22]}  exf4 {[%clk 0:00:44]} 35. Kxd4 {[%clk 0:00:18]}  Kf5 {[%clk 0:00:44]} 36. Kd3 {[%clk 0:00:16]}  Re3+ {[%clk 0:00:38]} 37. Kd4 {[%clk 0:00:17]}  g5 {[%clk 0:00:38]} 38. Rc2 {[%clk 0:00:11]}  Re4+ {[%clk 0:00:32]} 39. Kd3 {[%clk 0:00:10]}  Re3+ {[%clk 0:00:28]} 40. Kd4 {[%clk 0:00:10]}  Re4+ {[%clk 0:00:29]} 41. Kd3 {[%clk 0:00:11]}  Re5 {[%clk 0:00:29]} 42. b4 {[%clk 0:00:03]}  g4 {[%clk 0:00:27]} 43. a4 {[%clk 0:00:02]}  Re3+ {[%clk 0:00:26]} 44. Kd4 {[%clk 0:00:03]}  Re4+ {[%clk 0:00:27]} 45. Kd3 {[%clk 0:00:03]}  Rxb4 {[%clk 0:00:20]} 46. Rc5+ {[%clk 0:00:04]}  Kf6 {[%clk 0:00:19]} 47. Rc6+ {[%clk 0:00:04]}  Kg5 {[%clk 0:00:19]} 48. Rc5+ {[%clk 0:00:04]}  Kh4 {[%clk 0:00:19]} 49. Rc7 {[%clk 0:00:05]}  Rxa4 {[%clk 0:00:14]} 50. Rxh7+ {[%clk 0:00:05]}  Kg5 {[%clk 0:00:15]} 51. Rg7+ {[%clk 0:00:06]}  Kf5 {[%clk 0:00:15]} 52. Rf7+ {[%clk 0:00:07]}  Kg6 {[%clk 0:00:16]} 53. Rf8 {[%clk 0:00:04]}  a5 {[%clk 0:00:16]} 54. Rb8 {[%clk 0:00:01]}  Ra3+ {[%clk 0:00:15]} 55. Kd4 {[%clk 0:00:01]}  Ra4+ {[%clk 0:00:15]} 56. Ke5 {[%clk 0:00:02]}  f3 {[%clk 0:00:16]} 57. gxf3 {[%clk 0:00:03]}  gxf3 {[%clk 0:00:17]} 58. Rb3 {[%clk 0:00:03]}  f2 {[%clk 0:00:13]} 59. Rg3+ {[%clk 0:00:04]}  Kh5 {[%clk 0:00:12]} 60. Rf3 {[%clk 0:00:04]}  Ra2 {[%clk 0:00:12]} 61. Kf4 {[%clk 0:00:05]}  a4 {[%clk 0:00:11]} 62. Kg3 {[%clk 0:00:05]}  a3 {[%clk 0:00:11]} 63. h3 {[%clk 0:00:05]}  Ra1 {[%clk 0:00:07]} 64. Kxf2 {[%clk 0:00:02]}  a2 {[%clk 0:00:07]} 65. Kg2 {[%clk 0:00:01]}  Rb1 {[%clk 0:00:06]} 66. Rf5+ {[%clk 0:00:02]}  Kg6 {[%clk 0:00:05]} 67. Ra5 {[%clk 0:00:02]}  a1=Q {[%clk 0:00:06]} 68. Rxa1 {[%clk 0:00:02]}  Rxa1 {[%clk 0:00:07]} 69. Kg3 {[%clk 0:00:03]}  Kh5 {[%clk 0:00:08]} 70. Kf4 {[%clk 0:00:02]}  Ra3 {[%clk 0:00:09]} 71. Kf5 {[%clk 0:00:03]}  Kh4 {[%clk 0:00:09]} 72. Kf4 {[%clk 0:00:04]}  Rxh3 {[%clk 0:00:10]} 73. Kf5 {[%clk 0:00:04]}  Rg3 {[%clk 0:00:11]} 74. Kf6 {[%clk 0:00:05]}  Kg4 {[%clk 0:00:11]} 75. Ke7 {[%clk 0:00:05]}  Rf3 {[%clk 0:00:12]} 76. Ke6 {[%clk 0:00:06]}  Kf4 {[%clk 0:00:13]} 77. Kd7 {[%clk 0:00:07]}  Re3 {[%clk 0:00:13]} 78. Kd6 {[%clk 0:00:08]}  Ke4 {[%clk 0:00:14]} 0-1

[Event "January 9 Early 2024"]
[Site "https://www.chess.com"]
[Date "2024.01.11"]
[Round "5"]
[White "Tulchynskyi, Feliks"]
[Black "Wantiez, Fabrice"]
[Result "1/2-1/2"]
[Board "288"]
[TimeControl "180+1"]
[WhiteFideId "34127895"]
[BlackFideId "202274"]
[WhiteElo "2558"]
[BlackElo "2408"]
[WhiteTeam "UKR"]
[BlackTeam "BEL"]
[WhiteClock "0:00:06"]
[BlackClock "0:00:25"]

1. c4 {[%clk 0:02:45]}  Nf6 {[%clk 0:02:59]} 2. Nc3 {[%clk 0:02:41]}  d5 {[%clk 0:02:59]} 3. cxd5 {[%clk 0:02:36]}  Nxd5 {[%clk 0:03:00]} 4. g3 {[%clk 0:02:36]}  g6 {[%clk 0:03:00]} 5. Bg2 {[%clk 0:02:35]}  Nb6 {[%clk 0:03:00]} 6. Nf3 {[%clk 0:02:29]}  Bg7 {[%clk 0:03:01]} 7. O-O {[%clk 0:02:30]}  O-O {[%clk 0:03:00]} 8. a3 {[%clk 0:02:29]}  Nc6 {[%clk 0:03:00]} 9. d3 {[%clk 0:02:28]}  e5 {[%clk 0:03:00]} 10. Bd2 {[%clk 0:02:25]}  Nd4 {[%clk 0:03:00]} 11. b4 {[%clk 0:02:23]}  Bg4 {[%clk 0:03:00]} 12. Nxd4 {[%clk 0:02:15]}  exd4 {[%clk 0:03:01]} 13. Ne4 {[%clk 0:02:05]}  c6 {[%clk 0:03:01]} 14. h3 {[%clk 0:02:05]}  Bf5 {[%clk 0:02:50]} 15. Nc5 {[%clk 0:02:04]}  Qe7 {[%clk 0:02:48]} 16. Re1 {[%clk 0:01:56]}  Nd5 {[%clk 0:02:39]} 17. Qc2 {[%clk 0:01:52]}  Rac8 {[%clk 0:02:28]} 18. Rac1 {[%clk 0:01:45]}  Rfe8 {[%clk 0:02:28]} 19. g4 {[%clk 0:01:24]}  Be6 {[%clk 0:02:27]} 20. Nxe6 {[%clk 0:01:18]}  Qxe6 {[%clk 0:02:28]} 21. e4 {[%clk 0:01:14]}  dxe3 {[%clk 0:02:23]} 22. fxe3 {[%clk 0:01:11]}  Qd6 {[%clk 0:02:15]} 23. d4 {[%clk 0:00:55]}  Re7 {[%clk 0:01:43]} 24. Kh1 {[%clk 0:00:45]}  Rce8 {[%clk 0:01:42]} 25. e4 {[%clk 0:00:43]}  Nf4 {[%clk 0:01:21]} 26. e5 {[%clk 0:00:35]}  Qxd4 {[%clk 0:01:21]} 27. Re4 {[%clk 0:00:29]}  Qd3 {[%clk 0:01:08]} 28. Rxf4 {[%clk 0:00:28]}  Qxc2 {[%clk 0:01:07]} 29. Rxc2 {[%clk 0:00:29]}  Bxe5 {[%clk 0:01:07]} 30. Re4 {[%clk 0:00:28]}  Rd8 {[%clk 0:01:05]} 31. Bg5 {[%clk 0:00:25]}  f6 {[%clk 0:01:03]} 32. Rd2 {[%clk 0:00:20]}  Rxd2 {[%clk 0:01:00]} 33. Bxd2 {[%clk 0:00:21]}  Rd7 {[%clk 0:01:01]} 34. Re2 {[%clk 0:00:19]}  Rd3 {[%clk 0:01:02]} 35. Be3 {[%clk 0:00:19]}  Rxa3 {[%clk 0:01:01]} 36. Bf3 {[%clk 0:00:16]}  Rb3 {[%clk 0:00:55]} 37. Kg2 {[%clk 0:00:16]}  Rxb4 {[%clk 0:00:55]} 38. Bxa7 {[%clk 0:00:16]}  Rb2 {[%clk 0:00:51]} 39. Kf2 {[%clk 0:00:14]}  Kf7 {[%clk 0:00:50]} 40. Rxb2 {[%clk 0:00:13]}  Bxb2 {[%clk 0:00:51]} 41. Ke3 {[%clk 0:00:13]}  Ke6 {[%clk 0:00:52]} 42. Bc5 {[%clk 0:00:13]}  Be5 {[%clk 0:00:48]} 43. Kd3 {[%clk 0:00:11]}  f5 {[%clk 0:00:47]} 44. Kc4 {[%clk 0:00:11]}  Bc7 {[%clk 0:00:43]} 45. gxf5+ {[%clk 0:00:10]}  Kxf5 {[%clk 0:00:42]} 46. Bg4+ {[%clk 0:00:11]}  Kf4 {[%clk 0:00:43]} 47. Bd4 {[%clk 0:00:06]}  h5 {[%clk 0:00:41]} 48. Bc8 {[%clk 0:00:05]}  g5 {[%clk 0:00:39]} 49. Bxb7 {[%clk 0:00:04]}  g4 {[%clk 0:00:40]} 50. hxg4 {[%clk 0:00:03]}  hxg4 {[%clk 0:00:39]} 51. Bxc6 {[%clk 0:00:04]}  Be5 {[%clk 0:00:36]} 52. Bc5 {[%clk 0:00:03]}  g3 {[%clk 0:00:35]} 53. Kd3 {[%clk 0:00:04]}  Kg4 {[%clk 0:00:32]} 54. Ke2 {[%clk 0:00:03]}  Bf4 {[%clk 0:00:32]} 55. Kf1 {[%clk 0:00:03]}  Bc7 {[%clk 0:00:33]} 56. Kg2 {[%clk 0:00:03]}  Bf4 {[%clk 0:00:33]} 57. Bf3+ {[%clk 0:00:04]}  Kg5 {[%clk 0:00:32]} 58. Kh3 {[%clk 0:00:04]}  Bc7 {[%clk 0:00:32]} 59. Be3+ {[%clk 0:00:04]}  Kg6 {[%clk 0:00:31]} 60. Kg4 {[%clk 0:00:04]}  Kf6 {[%clk 0:00:31]} 61. Bd4+ {[%clk 0:00:04]}  Kg6 {[%clk 0:00:32]} 62. Be4+ {[%clk 0:00:04]}  Kf7 {[%clk 0:00:32]} 63. Kf5 {[%clk 0:00:04]}  Ke7 {[%clk 0:00:30]} 64. Bc5+ {[%clk 0:00:04]}  Bd6 {[%clk 0:00:30]} 65. Bb6 {[%clk 0:00:04]}  Kd7 {[%clk 0:00:30]} 66. Bd5 {[%clk 0:00:04]}  Bb8 {[%clk 0:00:29]} 67. Kg4 {[%clk 0:00:02]}  Bd6 {[%clk 0:00:29]} 68. Bg2 {[%clk 0:00:03]}  Bc7 {[%clk 0:00:30]} 69. Be3 {[%clk 0:00:03]}  Bd6 {[%clk 0:00:30]} 70. Kf5 {[%clk 0:00:04]}  Bc7 {[%clk 0:00:30]} 71. Ke4 {[%clk 0:00:05]}  Bd6 {[%clk 0:00:31]} 72. Kd5 {[%clk 0:00:05]}  Bc7 {[%clk 0:00:31]} 73. Bg5 {[%clk 0:00:06]}  Bd8 {[%clk 0:00:30]} 74. Bh3+ {[%clk 0:00:06]}  Ke8 {[%clk 0:00:30]} 75. Bf4 {[%clk 0:00:06]}  Bh4 {[%clk 0:00:28]} 76. Ke6 {[%clk 0:00:05]}  Kd8 {[%clk 0:00:28]} 77. Bg2 {[%clk 0:00:05]}  Kc8 {[%clk 0:00:27]} 78. Kf5 {[%clk 0:00:06]}  Kd7 {[%clk 0:00:26]} 79. Kg4 {[%clk 0:00:06]}  Be7 {[%clk 0:00:26]} 80. Bxg3 {[%clk 0:00:07]}  Bd6 {[%clk 0:00:27]} 81. Bf2 {[%clk 0:00:07]}  Ke6 {[%clk 0:00:27]} 82. Kg5 {[%clk 0:00:07]}  Be5 {[%clk 0:00:28]} 83. Be4 {[%clk 0:00:07]}  Kd6 {[%clk 0:00:29]} 84. Kf5 {[%clk 0:00:07]}  Bh2 {[%clk 0:00:29]} 85. Ba7 {[%clk 0:00:06]}  Kc7 {[%clk 0:00:27]} 86. Ke6 {[%clk 0:00:06]}  Bd6 {[%clk 0:00:26]} 87. Kd5 {[%clk 0:00:06]}  Bh2 {[%clk 0:00:26]} 88. Bc5 {[%clk 0:00:06]}  Bg3 {[%clk 0:00:26]} 89. Kc4 {[%clk 0:00:05]}  Bh2 {[%clk 0:00:26]} 90. Kb5 {[%clk 0:00:06]}  Bd6 {[%clk 0:00:25]} 91. Bb6+ {[%clk 0:00:05]}  Kd7 {[%clk 0:00:26]} 92. Bf5+ {[%clk 0:00:05]}  Ke7 {[%clk 0:00:26]} 93. Kc6 {[%clk 0:00:06]}  Ba3 {[%clk 0:00:26]} 94. Kd5 {[%clk 0:00:05]}  Bb4 {[%clk 0:00:26]} 95. Ke5 {[%clk 0:00:04]}  Ba3 {[%clk 0:00:27]} 96. Bc7 {[%clk 0:00:04]}  Bb4 {[%clk 0:00:27]} 97. Be6 {[%clk 0:00:04]}  Ba3 {[%clk 0:00:27]} 98. Kf5 {[%clk 0:00:04]}  Bd6 {[%clk 0:00:27]} 99. Bb6 {[%clk 0:00:04]}  Bb4 {[%clk 0:00:28]} 100. Bd4 {[%clk 0:00:05]}  Kd6 {[%clk 0:00:28]} 101. Bg7 {[%clk 0:00:05]}  Bd2 {[%clk 0:00:27]} 102. Bf8+ {[%clk 0:00:05]}  Kc6 {[%clk 0:00:27]} 103. Ke5 {[%clk 0:00:04]}  Kc7 {[%clk 0:00:27]} 104. Bd6+ {[%clk 0:00:05]}  Kb7 {[%clk 0:00:27]} 105. Bd5+ {[%clk 0:00:05]}  Ka7 {[%clk 0:00:27]} 106. Bc5+ {[%clk 0:00:05]}  Ka6 {[%clk 0:00:27]} 107. Kd6 {[%clk 0:00:05]}  Ba5 {[%clk 0:00:27]} 108. Kc6 {[%clk 0:00:04]}  Bd8 {[%clk 0:00:26]} 109. Bc4+ {[%clk 0:00:04]}  Ka5 {[%clk 0:00:25]} 110. Bb5 {[%clk 0:00:04]}  Bc7 {[%clk 0:00:20]} 111. Bf1 {[%clk 0:00:02]}  Bd8 {[%clk 0:00:21]} 112. Kd5 {[%clk 0:00:02]}  Bc7 {[%clk 0:00:21]} 113. Kc4 {[%clk 0:00:03]}  Bd8 {[%clk 0:00:21]} 114. Bg2 {[%clk 0:00:02]}  Bc7 {[%clk 0:00:21]} 115. Bc6 {[%clk 0:00:03]}  Bd8 {[%clk 0:00:21]} 116. Bd6 {[%clk 0:00:03]}  Bb6 {[%clk 0:00:21]} 117. Bb8 {[%clk 0:00:04]}  Bd8 {[%clk 0:00:21]} 118. Bd6 {[%clk 0:00:04]}  Bb6 {[%clk 0:00:22]} 119. Kd5 {[%clk 0:00:04]}  Bd8 {[%clk 0:00:22]} 120. Ke6 {[%clk 0:00:04]}  Bb6 {[%clk 0:00:22]} 121. Kd7 {[%clk 0:00:05]}  Bd4 {[%clk 0:00:22]} 122. Kc7 {[%clk 0:00:05]}  Bb6+ {[%clk 0:00:22]} 123. Kb7 {[%clk 0:00:05]}  Bd4 {[%clk 0:00:22]} 124. Bc7+ {[%clk 0:00:05]}  Kb4 {[%clk 0:00:23]} 125. Bd6+ {[%clk 0:00:06]}  Kc3 {[%clk 0:00:23]} 126. Ka6 {[%clk 0:00:06]}  Be3 {[%clk 0:00:23]} 127. Kb5 {[%clk 0:00:07]}  Kd2 {[%clk 0:00:24]} 128. Kc4 {[%clk 0:00:06]}  Ke1 {[%clk 0:00:25]} 129. Kd3 {[%clk 0:00:07]}  Kf2 {[%clk 0:00:25]} 130. Be7 {[%clk 0:00:06]} 1/2-1/2